bitfinex-derivatives/quotes_ETHF0:USTF0_20260209
["timestamp","ask_amount","ask_price","bid_price","bid_amount"]
[1770618521960,10.84733125,2074.2,2073.1,0.24137]
[1770618521961,10.84733125,2074.2,2073.9,0.01]
[1770618522361,10.84239354,2074.2,2073.8,10.7154428]
[1770618522862,10.84733125,2074.4,2073.8,10.7154428]
[1770618523461,10.84733125,2074.6,2073.8,10.7154428]
[1770618523865,10.84733125,2074.6,2074.0,10.7154428]
[1770618526368,10.84733125,2074.6,2074.0,10.7254428]
[1770618526768,10.84733125,2074.6,2074.0,10.7154428]
[1770618527070,10.84733125,2074.6,2074.2,0.01]
[1770618527263,10.84733125,2074.6,2074.0,10.7154428]
[1770618527668,10.84733125,2074.6,2074.2,0.01]
[1770618527867,10.84733125,2074.6,2074.0,10.7154428]
[1770618528068,10.84733125,2074.6,2073.7,11.00497009]
[1770618528364,10.84733125,2074.6,2074.0,11.01497009]
[1770618528558,10.84733125,2074.6,2074.0,11.00497009]
[1770618528762,10.76205017,2075.1,2074.0,11.24623009]
[1770618529166,10.76205017,2075.1,2074.8,0.01]
[1770618529577,10.76205017,2075.1,2074.5,11.00497009]
[1770618529876,10.76641622,2075.1,2074.9,0.01]
[1770618530076,10.76641622,2075.1,2074.5,11.01119619]
[1770618530572,10.76641622,2075.1,2074.5,0.0062261]
[1770618535480,10.76641622,2075.1,2074.5,11.01119619]
[1770618537080,0.00436605,2075.1,2074.5,11.01119619]
[1770618537282,0.00436605,2075.1,2074.7,11.00497009]
[1770618537484,10.76641622,2075.1,2074.5,0.0062261]
[1770618537682,10.76641622,2075.1,2074.5,11.01119619]
[1770618537879,10.76641622,2075.1,2074.5,11.02119619]
[1770618538179,10.76641622,2075.1,2074.5,11.01119619]
[1770618538484,10.76641622,2075.1,2074.5,0.0062261]
[1770618538679,10.76641622,2075.1,2074.5,11.01119619]
[1770618539682,10.76205017,2075.7,2074.5,11.01119619]
[1770618539885,10.76205017,2075.5,2074.5,11.01119619]
[1770618540378,29.94437327,2076.0,2075.2,12.11416009]
[1770618540571,11.88085351,2076.4,2075.2,5.75052697]
[1770618540773,11.88570566,2076.4,2075.0,0.01]
[1770618540982,11.88570566,2076.4,2075.1,2.88358639]
[1770618541285,11.87585351,2076.1,2075.1,2.88358639]
[1770618541674,0.01,2075.3,2075.1,2.88358639]
[1770618541880,11.87585351,2076.1,2075.3,0.01]
[1770618542678,11.87585351,2076.1,2075.3,0.02]
[1770618542877,11.87585351,2076.1,2075.3,0.01]
[1770618543284,11.87585351,2076.1,2075.4,0.32815554]
[1770618543784,11.87585351,2076.1,2075.4,0.31815554]
[1770618544083,11.87585351,2076.1,2075.8,0.01]
[1770618544284,11.87585351,2076.1,2075.5,0.31815554]
[1770618544484,11.87585351,2076.1,2075.6,0.01]
[1770618544884,11.87585351,2076.1,2075.5,0.31815554]
[1770618545086,11.87585351,2076.1,2075.6,0.01]
[1770618545585,11.87585351,2076.1,2075.1,0.54323441]
[1770618545786,11.87585351,2076.1,2074.7,2.87358639]
[1770618546082,11.7248063,2075.6,2075.2,0.01]
[1770618546477,11.74289609,2076.3,2074.9,0.51707484]
[1770618546682,11.74289609,2076.3,2075.0,0.27591484]
[1770618546882,11.74289609,2075.9,2075.4,0.01]
[1770618547085,11.74289609,2075.9,2075.4,0.27591484]
[1770618547487,11.74289609,2075.9,2075.6,0.01]
[1770618548282,11.74289609,2075.9,2075.3,0.27591484]
[1770618548688,11.75289609,2075.9,2075.4,0.01]
[1770618549390,11.74289609,2075.9,2075.1,0.24114]
[1770618549888,11.74289609,2075.9,2075.5,0.01]
[1770618550085,11.88085351,2076.3,2075.1,3.11472639]
[1770618550289,11.88085351,2076.3,2075.2,3.11470639]
[1770618550486,11.89085351,2076.1,2075.6,0.01]
[1770618550889,0.01,2076.1,2075.6,0.25108]
[1770618551183,11.88085351,2076.3,2075.6,0.24108]
[1770618551387,11.88085351,2076.1,2075.7,0.01]
[1770618552289,0.01,2076.2,2075.7,0.01]
[1770618552483,11.88085351,2076.3,2075.6,0.24108]
[1770618552683,11.88085351,2076.3,2076.0,0.01]
[1770618552984,11.88085351,2076.3,2076.0,0.01397294]
[1770618553385,11.88085351,2076.3,2076.0,0.00397294]
[1770618553689,11.88085351,2076.3,2075.9,0.01]
[1770618553888,11.88085351,2076.3,2075.6,0.24108]
[1770618554282,11.89085351,2076.3,2075.8,0.01]
[1770618554478,11.89085351,2076.3,2075.6,0.24108]
[1770618554683,11.88085351,2076.3,2075.6,0.2448042]
[1770618557585,11.88085351,2076.3,2075.6,0.0037242]
[1770618558092,11.88071225,2076.0,2075.6,0.0037242]
[1770618558488,0.01,2076.1,2075.6,0.0037242]
[1770618558793,11.88071225,2076.1,2075.6,0.0037242]
[1770618560393,11.89071225,2076.3,2075.6,0.0037242]
[1770618560887,11.88071225,2076.3,2075.6,0.0037242]
[1770618561285,11.88071225,2076.3,2075.6,2.87731059]
[1770618564191,11.88071225,2076.3,2075.7,2.87358639]
[1770618564399,11.89071225,2076.3,2075.7,2.87358639]
[1770618564598,11.88071225,2076.3,2075.7,2.87358639]
[1770618564896,11.89071225,2076.3,2075.7,2.87358639]
[1770618565297,11.88071225,2076.3,2075.7,2.87358639]
[1770618565496,11.89071225,2076.3,2075.7,2.87358639]
[1770618565799,11.88071225,2076.3,2075.7,2.87358639]
[1770618566201,11.89071225,2076.3,2075.8,2.87358639]
[1770618566398,11.88071225,2076.3,2075.8,2.87358639]
[1770618566693,11.89071225,2076.3,2075.8,2.87358639]
[1770618567095,11.88071225,2076.3,2075.8,2.87358639]
[1770618567401,11.89071225,2076.3,2075.8,2.87358639]
[1770618567701,11.88071225,2076.3,2075.8,2.87358639]
[1770618568001,11.88071225,2076.1,2075.8,2.87358639]
[1770618568602,11.89071225,2076.1,2075.7,3.31037959]
[1770618569001,11.88071225,2076.1,2075.7,3.31037959]
[1770618569201,11.88071225,2076.1,2075.6,5.75425117]
[1770618569404,11.89071225,2076.1,2075.6,5.75425117]
[1770618569702,11.88071225,2076.1,2075.6,5.75425117]
[1770618569902,11.89071225,2076.1,2075.6,5.75425117]
[1770618570198,11.88071225,2076.1,2075.6,5.75425117]
[1770618570403,11.88071225,2076.1,2075.7,2.17046809]
[1770618570601,11.89071225,2076.1,2075.7,2.17046809]
[1770618570801,11.88071225,2076.1,2075.7,2.17046809]
[1770618571499,11.05576589,2076.3,2075.7,2.17046809]
[1770618571695,0.01,2076.2,2075.7,2.17046809]
[1770618571905,11.06576589,2076.2,2075.7,2.17046809]
[1770618572104,11.05576589,2076.2,2075.7,2.17046809]
[1770618572405,11.06576589,2076.2,2075.7,2.17046809]
[1770618572705,11.05576589,2076.2,2075.7,2.17046809]
[1770618573205,11.06576589,2076.2,2075.7,7.92099506]
[1770618573398,11.05576589,2076.2,2075.8,2.19243526]
[1770618573800,11.06576589,2076.2,2075.8,2.19243526]
[1770618574009,11.05576589,2076.2,2075.8,2.19243526]
[1770618574304,11.05576589,2076.2,2075.6,5.75425117]
[1770618576200,11.05576589,2076.2,2075.7,5.75052697]
[1770618576707,11.05576589,2076.2,2075.8,2.22407214]
[1770618578307,11.05576589,2076.2,2075.8,7.97459911]
[1770618578603,11.06576589,2076.2,2075.8,7.97459911]
[1770618579008,11.05576589,2076.2,2075.8,7.97459911]
[1770618579209,11.06576589,2076.2,2075.8,7.97459911]
[1770618579506,11.05576589,2076.2,2075.8,7.97459911]
[1770618579909,11.05576589,2076.3,2075.9,2.50439093]
[1770618580104,11.05576589,2076.3,2075.9,8.2549179]
[1770618580298,11.05576589,2076.3,2074.7,11.88071224]
[1770618580499,11.05576589,2076.3,2074.4,7.32018427]
[1770618580500,42.54337898,2076.2,2074.4,7.32018427]
[1770618580709,0.01,2075.3,2074.5,11.88071224]
[1770618581107,42.54337898,2076.1,2074.5,11.88071224]
[1770618581408,0.01,2075.4,2074.5,11.88561584]
[1770618582512,0.14232626,2075.3,2074.5,11.88561584]
[1770618583211,0.14232626,2075.1,2074.5,11.88561584]
[1770618583711,0.01,2074.9,2074.5,11.88561584]
[1770618583913,0.01528026,2074.9,2074.5,11.88561584]
[1770618586506,0.00528026,2074.9,2074.5,11.88561584]
[1770618587510,3.788,2075.9,2074.7,11.8660485]
[1770618587710,5.55763344,2076.5,2074.9,11.8660485]
[1770618587711,0.02077762,2076.3,2074.9,11.8660485]
[1770618587911,0.02077762,2076.1,2074.9,11.8660485]
[1770618588508,0.02077762,2076.1,2074.5,0.0049036]
[1770618588509,0.24107,2075.7,2074.5,0.0049036]
[1770618588716,0.08238717,2075.5,2074.5,0.0049036]
[1770618591409,0.08238717,2075.5,2074.5,11.7869095]
[1770618597216,0.11398185,2076.0,2074.5,12.0281095]
[1770618598006,0.11398185,2076.0,2074.5,11.7869095]
[1770618598316,0.11398185,2075.8,2074.5,11.7869095]
[1770618598515,0.1105879,2075.6,2074.5,11.7869095]
[1770618598817,0.1105879,2075.5,2074.5,11.7869095]
[1770618599415,0.1105879,2075.4,2074.5,11.7869095]
[1770618600316,0.13007954,2075.3,2074.5,0.0049036]
[1770618601612,0.13007954,2075.3,2074.5,11.81630114]
[1770618602213,0.13007954,2075.3,2074.5,0.0049036]
[1770618602421,0.10735892,2075.1,2074.5,0.0049036]
[1770618602620,0.10735892,2075.1,2074.1,11.82520965]
[1770618603118,0.10245532,2075.0,2073.9,11.82520965]
[1770618603317,0.10245532,2074.7,2073.7,11.82520965]
[1770618603619,0.10245532,2074.7,2073.7,11.82937465]
[1770618603815,0.10245532,2074.7,2073.7,0.004165]
[1770618605520,0.0389128,2074.5,2073.7,0.004165]
[1770618605716,0.00599804,2074.5,2073.7,11.86114591]
[1770618605918,0.04491084,2075.1,2074.1,11.85398189]
[1770618606120,0.04491084,2075.3,2074.1,11.85398189]
[1770618606326,5.55763344,2076.0,2074.4,11.85398189]
[1770618606327,0.04491084,2075.6,2074.4,11.85398189]
[1770618606627,0.07329373,2075.8,2074.4,12.09520189]
[1770618606821,0.07329373,2075.8,2074.7,12.08096044]
[1770618606822,0.00458807,2075.8,2074.7,12.08096044]
[1770618607015,0.00458807,2075.8,2074.4,1.1096]
[1770618607016,0.00458807,2075.8,2074.9,11.83979044]
[1770618607221,0.00458807,2075.8,2074.8,1.1094]
[1770618607222,0.07329373,2076.4,2075.2,11.83979044]
[1770618608229,0.077459,2076.4,2075.2,11.84521261]
[1770618608430,0.00416527,2076.4,2075.2,12.95438261]
[1770618609534,0.00416527,2076.4,2075.5,11.67328756]
[1770618610630,0.43464684,2076.4,2075.5,11.67328756]
[1770618613326,0.00416527,2076.4,2075.5,11.67328756]
[1770618621943,0.39298184,2076.7,2075.5,11.67328756]
[1770618622142,4.18098184,2076.9,2075.7,11.68216868]
[1770618622337,4.18098184,2076.9,2075.4,1.10905]
[1770618622338,3.788,2076.9,2075.9,11.66550253]
[1770618622544,3.788,2076.9,2075.9,11.90654253]
[1770618622739,2.79675334,2076.9,2076.1,14.45230958]
[1770618622934,2.80076193,2076.9,2076.1,14.45230958]
[1770618623138,2.80076193,2076.9,2076.1,11.90652253]
[1770618624341,10.203,2077.5,2076.1,11.96414668]
[1770618624342,3.22707608,2077.3,2076.1,11.96414668]
[1770618624547,3.28416048,2077.0,2075.9,11.07614823]
[1770618625247,3.28902121,2077.0,2075.9,11.07614823]
[1770618626445,0.00486073,2077.0,2076.1,11.07614823]
[1770618626649,3.16762563,2077.0,2076.1,11.07614823]
[1770618630350,0.00486073,2077.0,2076.1,11.07614823]
[1770618631651,3.39592921,2077.0,2076.1,11.07614823]
[1770618635249,7.54630415,2076.9,2076.1,11.07614823]
[1770618635449,4.18424068,2076.8,2076.1,11.07614823]
[1770618635653,3.36206347,2076.9,2076.1,11.07614823]
[1770618635857,3.36206347,2076.7,2076.1,11.07614823]
[1770618636951,3.36206347,2076.7,2075.7,11.07614823]
[1770618637256,3.37824816,2076.5,2075.7,11.07614823]
[1770618637450,3.38310889,2077.0,2075.7,11.07614823]
[1770618637651,4.15265009,2076.9,2075.9,11.07614823]
[1770618637948,3.38310889,2077.0,2075.9,11.07614823]
[1770618638152,4.1526962,2076.9,2075.9,11.07614823]
[1770618638356,3.38310889,2077.0,2075.9,11.07614823]
[1770618638654,4.15343654,2076.9,2075.9,11.07614823]
[1770618638855,3.38310889,2077.0,2075.9,11.07614823]
[1770618639156,4.15343664,2076.9,2075.9,11.07614823]
[1770618639454,3.38310889,2077.0,2075.9,11.07614823]
[1770618639753,3.3724078,2076.8,2075.9,11.07614823]
[1770618640556,3.22030922,2076.9,2075.9,11.07614823]
[1770618641955,3.22030922,2076.6,2075.9,11.07614823]
[1770618642155,7.37352697,2076.5,2075.9,11.07614823]
[1770618642453,3.22030922,2076.5,2075.9,11.07614823]
[1770618642852,6.09798786,2076.7,2075.9,11.07614823]
[1770618643052,4.16177145,2076.6,2075.9,11.07614823]
[1770618643253,4.16177145,2076.5,2075.9,11.07614823]
[1770618643451,2.81768919,2076.8,2075.9,11.07614823]
[1770618643654,9.89084859,2077.0,2075.9,11.07614823]
[1770618643851,4.16308176,2076.9,2075.9,11.07614823]
[1770618644056,0.00486073,2077.0,2075.9,11.31718823]
[1770618644262,4.16381983,2076.9,2075.9,11.31718823]
[1770618644463,3.2851594,2077.0,2075.9,11.31718823]
[1770618644758,4.16377749,2076.9,2075.9,11.31718823]
[1770618644959,0.00486073,2077.0,2075.9,11.31718823]
[1770618645658,0.00486073,2077.0,2076.1,10.73710845]
[1770618646761,3.29303008,2077.0,2076.1,10.73710845]
[1770618646955,3.28816935,2076.6,2075.7,10.73710845]
[1770618647154,3.28816935,2076.4,2075.7,10.73710845]
[1770618647555,3.28816935,2076.2,2075.7,9.73710845]
[1770618647860,0.01,2075.9,2075.7,9.73710845]
[1770618648760,13.02068919,2076.5,2075.7,9.73710845]
[1770618649063,4.24628764,2076.3,2075.7,9.73710845]
[1770618649758,7.06397683,2076.5,2075.7,9.73710845]
[1770618649962,4.24628764,2076.3,2075.7,9.74710845]
[1770618650162,8.40458042,2076.2,2075.7,9.73710845]
[1770618650463,4.24628764,2076.2,2075.7,9.73710845]
[1770618650661,5.3669757,2076.6,2075.7,9.73710845]
[1770618650966,4.15748604,2076.5,2075.7,9.74710845]
[1770618651264,4.15748604,2076.4,2075.7,9.74710845]
[1770618651464,5.3669757,2076.6,2075.7,9.73710845]
[1770618651763,4.15744501,2076.5,2075.9,10.73710845]
[1770618651964,5.3669757,2076.7,2075.9,10.73710845]
[1770618652357,5.3669757,2076.7,2075.4,0.2411]
[1770618652358,5.3669757,2076.5,2075.6,0.01]
[1770618652663,5.18402151,2076.3,2075.4,10.73710845]
[1770618652864,5.18402151,2076.1,2075.4,10.73710845]
[1770618656063,4.91083451,2075.9,2075.2,10.75253062]
[1770618656263,4.91083451,2075.7,2074.8,10.73710845]
[1770618656566,4.99795323,2075.5,2074.8,10.73710845]
[1770618656761,4.99795323,2075.3,2074.6,10.73710845]
[1770618657168,5.00206325,2075.3,2074.6,10.74053879]
[1770618657358,0.01,2074.9,2074.6,10.74053879]
[1770618657557,9.70678214,2074.9,2074.6,0.00343034]
[1770618657962,0.01,2074.7,2074.6,0.00343034]
[1770618659263,9.79590203,2075.3,2074.6,10.74053879]
[1770618660170,9.79590203,2075.3,2074.2,10.74710845]
[1770618660569,9.79590203,2075.3,2074.2,10.73710845]
[1770618660770,9.79590203,2075.3,2074.2,10.74710845]
[1770618661067,9.79590203,2075.3,2074.2,10.75261578]
[1770618661268,9.79590203,2075.3,2074.2,10.74261578]
[1770618661466,9.80980079,2075.7,2074.3,10.97832845]
[1770618662264,10.15,2076.0,2074.3,10.97832845]
[1770618662466,9.76640138,2075.9,2074.3,10.97832845]
[1770618662663,9.76640138,2075.9,2075.0,10.73710845]
[1770618663861,3.79158647,2076.0,2075.0,10.73710845]
[1770618664064,0.00358647,2076.0,2075.0,10.73710845]
[1770618665068,9.70358727,2076.0,2075.0,10.73710845]
[1770618665268,9.7000008,2075.4,2074.5,10.73710845]
[1770618665575,2.78680705,2075.5,2074.3,10.73710845]
[1770618665576,9.7000008,2075.2,2074.3,10.73710845]
[1770618665974,9.7000008,2075.0,2074.2,0.00550733]
[1770618666272,9.7000008,2075.0,2074.2,10.74261578]
[1770618667273,9.3648645,2075.4,2074.2,10.74261578]
[1770618667474,9.3648645,2075.2,2074.2,10.74261578]
[1770618669875,9.3648645,2075.2,2074.2,10.75261578]
[1770618670373,36.76649624,2075.5,2074.2,10.74261578]
[1770618670374,31.162,2075.5,2074.2,10.74261578]
[1770618670573,40.3683398,2075.5,2074.2,10.75261578]
[1770618670773,40.3683398,2075.5,2074.2,10.74261578]
[1770618670975,9.2063398,2075.7,2074.2,10.74261578]
[1770618671176,9.2063398,2075.7,2074.5,10.73710845]
[1770618671777,9.2063398,2075.7,2074.5,10.74710845]
[1770618671974,9.2063398,2075.7,2074.5,10.73710845]
[1770618672473,9.2063398,2075.9,2074.5,10.73710845]
[1770618672678,9.2063398,2075.9,2074.5,10.97830845]
[1770618672876,0.00358647,2076.0,2074.7,10.73710845]
[1770618673079,9.15704027,2076.0,2074.7,10.73710845]
[1770618674276,0.00358647,2076.0,2074.7,10.74710845]
[1770618674779,0.00358647,2076.0,2074.7,10.73710845]
[1770618675080,0.00358647,2076.0,2075.0,10.73710845]
[1770618676280,9.12889139,2076.0,2075.0,10.73710845]
[1770618676580,9.12889139,2076.0,2075.0,10.74710845]
[1770618676776,9.12889139,2076.0,2075.0,10.73710845]
[1770618677681,0.00358647,2076.0,2075.3,11.34425015]
[1770618678383,9.12793693,2076.3,2075.3,11.35425015]
[1770618678577,9.12793693,2076.3,2075.3,11.34425015]
[1770618679389,9.13190279,2076.3,2075.5,11.34425015]
[1770618680287,0.00396586,2076.3,2075.5,11.34425015]
[1770618682887,3.788,2076.7,2075.5,11.34425015]
[1770618683101,12.936717,2076.7,2075.5,11.35425015]
[1770618683396,9.148717,2076.5,2075.5,11.34425015]
[1770618683792,9.148717,2076.5,2075.5,11.35425015]
[1770618684192,9.148717,2076.5,2075.5,11.34425015]
[1770618684598,9.15492745,2076.5,2075.5,11.34425015]
[1770618687690,9.15492745,2076.5,2075.5,11.35425015]
[1770618687892,9.15492745,2076.5,2075.5,11.34425015]
[1770618688193,9.11716532,2077.3,2076.0,11.34425015]
[1770618688494,9.11716532,2077.3,2075.9,0.24104]
[1770618688495,8.43992315,2077.6,2076.2,11.34425015]
[1770618688793,8.43992315,2077.4,2076.2,11.34425015]
[1770618688997,8.43992315,2077.3,2076.2,11.35425015]
[1770618689199,8.4456671,2077.3,2076.2,11.34765348]
[1770618689601,0.00574395,2077.3,2076.7,11.34425015]
[1770618690599,8.41349205,2077.9,2076.7,11.34425015]
[1770618690792,8.41349205,2077.9,2076.7,11.35425015]
[1770618690996,8.41349205,2077.9,2076.7,11.34425015]
[1770618691701,8.41879698,2077.9,2076.7,11.34425015]
[1770618694000,0.00530493,2077.9,2076.7,11.34425015]
[1770618694209,7.65007772,2077.9,2076.7,11.34425015]
[1770618695297,7.65007772,2077.9,2076.7,11.35425015]
[1770618695499,7.65007772,2077.9,2076.7,11.34425015]
[1770618697002,7.65007772,2077.9,2076.7,11.35425015]
[1770618697599,7.65007772,2077.9,2076.7,11.34425015]
[1770618697800,7.65007772,2077.9,2076.7,11.35425015]
[1770618698202,7.65007772,2077.9,2076.7,11.34425015]
[1770618700001,0.00530493,2077.9,2076.9,11.34425015]
[1770618700502,0.00530493,2077.9,2076.9,11.58518015]
[1770618700898,0.00530493,2077.9,2077.2,11.34425015]
[1770618701102,0.24074,2078.5,2077.2,11.34425015]
[1770618701103,6.82733911,2078.5,2077.2,11.34425015]
[1770618702107,6.83152759,2078.5,2077.2,11.34425015]
[1770618702709,6.83152759,2078.5,2077.2,11.35425015]
[1770618703008,6.83152759,2078.5,2077.2,11.34425015]
[1770618703203,6.78630464,2078.4,2077.2,11.34425015]
[1770618703403,6.78630464,2078.4,2077.2,11.35425015]
[1770618703808,6.78630464,2078.4,2077.2,11.34425015]
[1770618704111,6.78630464,2078.4,2077.2,11.35425015]
[1770618704298,6.78630464,2078.4,2077.2,11.34425015]
[1770618704705,6.78630464,2078.4,2077.2,11.35425015]
[1770618704906,6.78630464,2078.4,2077.2,11.34425015]
[1770618705407,6.78630464,2078.4,2077.1,0.2409]
[1770618705408,6.78630464,2078.4,2077.4,11.06358854]
[1770618707810,0.00418848,2078.5,2077.4,11.06358854]
[1770618708006,6.82400937,2078.5,2077.4,11.06358854]
[1770618709812,6.83113288,2078.3,2077.2,11.06358854]
[1770618710010,6.83113288,2078.4,2077.2,11.06358854]
[1770618710216,6.83113288,2078.4,2077.2,11.30447854]
[1770618714413,6.93151789,2078.2,2077.2,11.30447854]
[1770618717318,6.93151789,2078.2,2077.2,11.31447854]
[1770618717516,6.93151789,2078.2,2077.2,11.30447854]
[1770618717818,6.93151789,2078.2,2077.2,11.31447854]
[1770618718117,4.07921996,2078.1,2077.2,11.30447854]
[1770618718317,6.93151789,2078.2,2077.2,11.30447854]
[1770618718505,2.83337517,2078.3,2077.2,11.31447854]
[1770618718506,11.4530891,2078.1,2077.2,11.31447854]
[1770618718705,7.37386956,2078.0,2077.2,11.06358854]
[1770618719110,7.37386956,2078.0,2077.2,11.07358854]
[1770618719516,7.37386956,2078.0,2077.2,11.06358854]
[1770618719717,7.37386956,2078.0,2077.2,11.07358854]
[1770618719914,10.20724473,2078.2,2077.2,11.07358854]
[1770618720116,4.08071408,2078.1,2077.2,11.06358854]
[1770618720312,7.37386956,2078.2,2077.2,11.07358854]
[1770618720509,4.08105702,2078.1,2077.2,11.07358854]
[1770618720716,7.37386956,2078.2,2077.2,11.06358854]
[1770618720914,7.25541429,2078.0,2077.2,11.07358854]
[1770618721116,7.25541429,2077.8,2077.2,11.07358854]
[1770618721420,4.08896989,2077.7,2077.2,11.06358854]
[1770618721720,7.25541429,2077.9,2077.2,11.06358854]
[1770618722017,7.25541429,2078.1,2077.2,11.06358854]
[1770618722318,4.09010904,2078.0,2077.2,11.06358854]
[1770618722514,2.83337517,2078.2,2077.2,11.06358854]
[1770618722818,7.27660708,2078.1,2077.2,11.06358854]
[1770618723020,4.09015747,2078.0,2077.2,11.06358854]
[1770618724017,10.10998225,2078.2,2077.2,11.06358854]
[1770618724208,4.09121939,2078.1,2077.2,11.06358854]
[1770618724408,4.09121939,2078.0,2077.2,11.06358854]
[1770618724611,4.09121939,2078.0,2077.2,11.07358854]
[1770618724813,4.09121939,2078.0,2077.2,11.06358854]
[1770618725211,4.09121939,2078.0,2077.2,11.07358854]
[1770618725615,4.09121939,2078.0,2077.2,11.06358854]
[1770618725819,4.09121939,2078.0,2077.4,11.06358854]
[1770618726409,45.37675415,2078.3,2077.4,11.07358854]
[1770618726619,11.52020866,2078.5,2077.4,11.31444854]
[1770618726922,0.00418848,2078.5,2077.4,11.31444854]
[1770618727216,0.00418848,2078.5,2077.6,11.06358854]
[1770618727815,11.52020866,2078.5,2077.6,11.06358854]
[1770618728414,0.00418848,2078.5,2077.6,11.06358854]
[1770618728619,0.00418848,2078.5,2077.6,11.30442854]
[1770618728821,0.00418848,2078.5,2077.7,11.06358854]
[1770618729120,3.788,2078.7,2077.7,11.06798766]
[1770618729321,3.788,2078.7,2077.7,11.07798766]
[1770618729521,10.87413747,2078.6,2077.7,11.06798766]
[1770618729920,10.87413747,2078.6,2077.7,11.07798766]
[1770618730118,10.87807208,2078.6,2077.7,11.06798766]
[1770618730427,0.00393461,2078.6,2077.7,11.07798766]
[1770618730816,10.90562723,2078.6,2077.7,11.06798766]
[1770618733025,10.90562723,2078.6,2077.7,11.07798766]
[1770618733225,10.90562723,2078.6,2077.7,11.06798766]
[1770618733524,10.90562723,2078.6,2077.7,11.07798766]
[1770618733821,10.90562723,2078.6,2077.7,11.06798766]
[1770618734022,11.04952246,2078.6,2077.7,11.07798766]
[1770618734526,11.04952246,2078.6,2077.7,11.06798766]
[1770618735018,11.05416768,2078.6,2077.7,11.06798766]
[1770618735621,0.00464522,2078.6,2077.7,11.06798766]
[1770618736320,0.00464522,2078.6,2077.9,11.50480206]
[1770618739129,0.00464522,2078.6,2077.9,11.51480206]
[1770618739428,10.54438048,2079.0,2077.9,11.50480206]
[1770618739624,10.5490257,2079.2,2078.0,11.78836265]
[1770618740028,10.5490257,2079.1,2078.0,11.78836265]
[1770618740328,10.55490711,2079.1,2078.0,11.78836265]
[1770618740528,0.00588141,2079.1,2078.0,11.78836265]
[1770618740730,10.63842796,2079.1,2078.0,11.78836265]
[1770618740930,10.63842796,2079.1,2078.2,11.78836265]
[1770618743128,34.19801517,2079.4,2078.3,11.78836265]
[1770618743129,10.58051136,2079.4,2078.3,11.78836265]
[1770618744129,10.58473867,2079.4,2078.3,11.78836265]
[1770618745837,10.58473867,2079.4,2078.3,11.79836265]
[1770618746134,10.58473867,2079.4,2078.3,11.78836265]
[1770618746328,10.67782221,2079.2,2078.2,11.78836265]
[1770618750740,10.67782221,2079.2,2077.8,11.78836265]
[1770618750741,10.57948975,2078.7,2077.8,11.78836265]
[1770618751041,10.57948975,2078.6,2077.8,11.78836265]
[1770618756633,10.57948975,2078.6,2077.7,0.00439912]
[1770618756833,2.83337517,2078.6,2077.7,11.79276177]
[1770618757145,10.44343583,2078.5,2077.7,11.79276177]
[1770618757532,10.44343583,2078.5,2077.7,0.00439912]
[1770618758136,10.44343583,2078.5,2077.7,11.79276177]
[1770618762134,31.118,2078.7,2077.7,11.79276177]
[1770618762641,10.45699731,2078.8,2077.7,11.79276177]
[1770618763342,31.122,2078.9,2077.7,11.79276177]
[1770618763343,10.44182161,2078.9,2077.7,11.79276177]
[1770618763535,10.44182161,2078.9,2077.8,11.78836265]
[1770618763735,10.44182161,2078.9,2077.8,11.79836265]
[1770618764142,44.39819678,2079.1,2077.8,11.79836265]
[1770618764343,41.56482161,2079.1,2077.8,12.03918265]
[1770618764542,31.123,2079.1,2077.8,16.36254831]
[1770618764742,41.7445955,2079.1,2077.9,11.78836265]
[1770618764943,10.6215955,2079.1,2077.9,11.78836265]
[1770618765143,10.6215955,2079.1,2078.0,11.5778532]
[1770618769249,10.6215955,2079.1,2078.3,0.01]
[1770618769448,10.6215955,2079.1,2078.4,11.5778532]
[1770618773352,10.57857548,2079.2,2078.4,11.5778532]
[1770618775252,10.55735348,2079.1,2078.4,11.5778532]
[1770618780548,10.55735348,2079.1,2078.2,11.5778532]
[1770618780952,10.6060316,2079.0,2078.2,11.5778532]
[1770618781354,10.6060316,2078.9,2077.7,0.00439912]
[1770618781558,10.6060316,2078.7,2077.8,11.5778532]
[1770618782452,31.117,2078.8,2077.8,11.5778532]
[1770618783056,31.117,2078.8,2077.8,15.90121886]
[1770618783351,10.44325925,2079.1,2078.0,11.5778532]
[1770618784459,41.70509703,2079.2,2078.0,15.90121886]
[1770618784651,41.70509703,2079.2,2078.1,11.5778532]
[1770618785060,10.58809703,2079.3,2078.2,11.5778532]
[1770618787062,10.58809703,2079.3,2078.3,11.5778532]
[1770618787562,0.00422731,2079.4,2078.3,11.5778532]
[1770618787764,10.62553115,2079.4,2078.3,11.5778532]
[1770618788164,10.62553115,2079.4,2078.4,11.5778532]
[1770618791073,10.62553115,2079.4,2078.5,11.5778532]
[1770618793574,0.00422731,2079.4,2078.6,11.5778532]
[1770618793776,10.64401197,2079.4,2078.6,11.5778532]
[1770618794672,10.6242853,2079.7,2078.7,11.5778532]
[1770618795770,10.62789084,2079.7,2078.7,11.5778532]
[1770618797370,9.95157019,2079.5,2078.5,10.94621983]
[1770618797676,9.95157019,2079.3,2078.5,10.94621983]
[1770618802174,9.88353052,2079.3,2078.5,10.94621983]
[1770618802381,9.88353052,2079.3,2078.4,10.94621983]
[1770618802868,9.88353052,2079.3,2078.1,10.94621983]
[1770618802869,10.01364908,2079.1,2078.1,10.94621983]
[1770618803074,10.01364908,2079.0,2078.1,10.94621983]
[1770618806878,10.01364908,2079.0,2077.7,5.74147786]
[1770618806879,10.08503269,2078.8,2077.9,10.94621983]
[1770618808481,31.113,2078.9,2077.9,10.94621983]
[1770618808684,10.06742651,2079.0,2077.9,10.94621983]
[1770618811380,10.06742651,2079.0,2078.0,10.94621983]
[1770618812880,10.30811651,2079.0,2078.0,10.94621983]
[1770618813082,10.30811651,2079.0,2077.9,10.94621983]
[1770618813083,10.07345483,2078.9,2077.9,10.94621983]
[1770618815481,10.31415483,2078.9,2077.9,10.94621983]
[1770618816187,10.06993717,2078.8,2077.7,10.95061895]
[1770618827292,10.31662851,2078.7,2077.7,10.95061895]
[1770618830401,10.14970954,2078.7,2077.7,10.95061895]
[1770618831202,12.99036304,2078.7,2077.7,10.95061895]
[1770618831497,10.14970954,2078.6,2077.7,10.95061895]
[1770618832405,10.14970954,2078.6,2077.8,11.08755958]
[1770618838511,10.16603772,2078.5,2077.8,11.08755958]
[1770618838809,10.16603772,2078.5,2077.7,0.00439912]
[1770618838810,44.12769122,2078.5,2077.7,0.00439912]
[1770618839004,10.16603772,2078.4,2077.7,0.00439912]
[1770618839807,10.16603772,2078.4,2077.7,11.0919587]
[1770618840609,44.12537294,2078.5,2077.7,11.0919587]
[1770618841112,31.121,2078.5,2077.7,11.0919587]
[1770618841304,10.16371944,2078.4,2077.7,11.0919587]
[1770618841509,10.16371944,2078.4,2077.7,0.00439912]
[1770618841709,10.16371944,2078.4,2077.7,11.0919587]
[1770618842307,10.16371944,2078.3,2077.7,11.0919587]
[1770618842908,10.16371944,2078.3,2077.7,0.00439912]
[1770618843207,10.16371944,2078.3,2077.7,11.0919587]
[1770618843610,10.18900705,2078.2,2077.5,11.08755958]